[Event "Sunway Sitges Chess Festival"]
[Date "2024.12.21"]
[White "Liu, Xiangyi"]
[Black "Siddharth, Jagadeesh"]
[WhiteElo "2372"]
[BlackElo "2510"]
[Round "8.7"]
[Result "1/2-1/2"]
[TimeControl "40/5400+30:1800+30"]

1. e4 {[%clk 1:15:46]} 1... e5 {[%clk 1:30:43]} 2. Nf3 {[%clk 1:15:02]} 2... Nc6
{[%clk 1:31:05]} 3. Nc3 {[%clk 1:15:18]} 3... Nf6 {[%clk 1:31:25]} 4. h3 {[%clk
1:15:40]} 4... h6 {[%clk 1:23:13]} 5. d4 {[%clk 0:53:36]} 5... exd4 {[%clk
1:19:53]} 6. Nxd4 {[%clk 0:54:02]} 6... Bb4 {[%clk 1:20:15]} 7. Nxc6 {[%clk
0:54:20]} 7... bxc6 {[%clk 1:20:37]} 8. Bd3 {[%clk 0:54:39]} 8... O-O {[%clk
1:15:26]} 9. O-O {[%clk 0:54:50]} 9... Re8 {[%clk 1:14:18]} 10. Re1 {[%clk
0:47:51]} 10... d6 {[%clk 1:13:26]} 11. Re3 {[%clk 0:38:34]} 11... Bxc3 {[%clk
1:08:39]} 12. bxc3 {[%clk 0:38:58]} 12... Nd7 {[%clk 1:08:58]} 13. Rb1 {[%clk
0:31:34]} 13... Qh4 {[%clk 1:04:02]} 14. Rg3 {[%clk 0:22:37]} 14... Ne5 {[%clk
0:55:50]} 15. Qe1 {[%clk 0:22:16]} 15... Kh8 {[%clk 0:41:14]} 16. f4 {[%clk
0:15:52]} 16... Nxd3 {[%clk 0:29:54]} 17. cxd3 {[%clk 0:16:15]} 17... d5 {[%clk
0:28:08]} 18. e5 {[%clk 0:05:46]} 18... Bf5 {[%clk 0:27:49]} 19. Rb7 {[%clk
0:05:17]} 19... Rec8 {[%clk 0:23:16]} 20. Qe3 {[%clk 0:04:19]} 20... c5 {[%clk
0:23:27]} 21. Kh2 {[%clk 0:04:21]} 21... c4 {[%clk 0:14:16]} 22. dxc4 {[%clk
0:03:44]} 22... dxc4 {[%clk 0:14:40]} 23. Qc5 {[%clk 0:03:36]} 23... Be6 {[%clk
0:14:00]} 24. Rxc7 {[%clk 0:02:51]} 24... Rxc7 {[%clk 0:14:25]} 25. Qxc7 {[%clk
0:03:19]} 25... Qh5 {[%clk 0:14:07]} 26. Be3 {[%clk 0:03:03]} 26... Qf5 {[%clk
0:13:49]} 27. a4 {[%clk 0:02:18]} 27... a5 {[%clk 0:13:58]} 28. Qb7 {[%clk
0:02:16]} 28... Rd8 {[%clk 0:14:18]} 29. Qe7 {[%clk 0:02:42]} 29... Rb8 {[%clk
0:14:13]} 30. Qc7 {[%clk 0:02:13]} 30... Rb1 {[%clk 0:12:51]} 1/2-1/2

[Variant "Standard"]
[Site "Europe Echecs"]

[Event "Sunway Sitges Chess Festival"]
[Date "2024.12.21"]
[White "Gholami Orimi, Mahdi"]
[Black "Anwesh, Upadhyaya"]
[WhiteElo "2402"]
[BlackElo "2379"]
[Round "8.8"]
[Result "1/2-1/2"]
[TimeControl "40/5400+30:1800+30"]

1. d4 {[%clk 1:30:00]} 1... d5 {[%clk 1:27:45]} 2. c4 {[%clk 1:29:33]} 2... c6
{[%clk 1:28:02]} 3. Nf3 {[%clk 1:28:56]} 3... Nf6 {[%clk 1:28:14]} 4. g3 {[%clk
1:28:07]} 4... Bf5 {[%clk 1:17:54]} 5. Nc3 {[%clk 1:27:42]} 5... h6 {[%clk
1:12:30]} 6. cxd5 {[%clk 1:19:34]} 6... Nxd5 {[%clk 1:01:04]} 7. Bg2 {[%clk
1:17:30]} 7... Nxc3 {[%clk 0:57:42]} 8. bxc3 {[%clk 1:16:32]} 8... Be4 {[%clk
0:57:56]} 9. O-O {[%clk 1:14:02]} 9... e6 {[%clk 0:58:03]} 10. Bf4 {[%clk
0:51:58]} 10... Be7 {[%clk 0:51:45]} 11. Ne5 {[%clk 0:41:38]} 11... Bxg2 {[%clk
0:50:58]} 12. Kxg2 {[%clk 0:42:07]} 12... O-O {[%clk 0:42:32]} 13. Rb1 {[%clk
0:41:30]} 13... b6 {[%clk 0:41:11]} 14. e4 {[%clk 0:39:14]} 14... Qc8 {[%clk
0:34:22]} 15. Qg4 {[%clk 0:31:44]} 15... Kh7 {[%clk 0:34:16]} 16. Qh3 {[%clk
0:29:57]} 16... Nd7 {[%clk 0:28:04]} 17. Ng4 {[%clk 0:30:16]} 17... Rh8 {[%clk
0:27:17]} 18. Rfe1 {[%clk 0:27:04]} 18... Kg8 {[%clk 0:23:55]} 19. f3 {[%clk
0:15:14]} 19... h5 {[%clk 0:21:53]} 20. Nf2 {[%clk 0:15:17]} 20... Nf8 {[%clk
0:19:13]} 21. Be3 {[%clk 0:14:47]} 21... Ng6 {[%clk 0:18:43]} 22. f4 {[%clk
0:13:21]} 22... f5 {[%clk 0:16:57]} 23. Kg1 {[%clk 0:12:58]} 23... Qd7 {[%clk
0:17:02]} 24. c4 {[%clk 0:13:14]} 24... Rf8 {[%clk 0:16:12]} 25. Rbd1 {[%clk
0:10:44]} 25... h4 {[%clk 0:11:30]} 26. Qg2 {[%clk 0:10:55]} 26... hxg3 {[%clk
0:10:46]} 27. hxg3 {[%clk 0:11:24]} 27... Rh6 {[%clk 0:09:40]} 28. e5 {[%clk
0:06:17]} 28... Bb4 {[%clk 0:04:15]} 29. Re2 {[%clk 0:06:46]} 29... Rd8 {[%clk
0:04:17]} 30. Qf3 {[%clk 0:06:18]} 30... b5 {[%clk 0:03:52]} 31. d5 {[%clk
0:04:59]} 31... cxd5 {[%clk 0:03:29]} 32. cxd5 {[%clk 0:05:12]} 32... exd5
{[%clk 0:03:51]} 33. Rc2 {[%clk 0:02:54]} 33... Nf8 {[%clk 0:03:21]} 34. Nd3
{[%clk 0:02:51]} 34... Be7 {[%clk 0:02:15]} 35. Nc1 {[%clk 0:01:06]} 35... Rc6
{[%clk 0:01:42]} 36. Rcd2 {[%clk 0:01:07]} 36... Rc3 {[%clk 0:00:56]} 37. Ne2
{[%clk 0:00:53]} 37... Ra3 {[%clk 0:01:13]} 38. Qf2 {[%clk 0:00:35]} 38... Qb7
{[%clk 0:00:35]} 39. Nd4 {[%clk 0:00:47]} 39... g6 {[%clk 0:00:47]} 40. Rc2
{[%clk 0:30:42]} 40... Rc8 {[%clk 0:30:37]} 41. Rxc8 {[%clk 0:19:25]} 41... Qxc8
{[%clk 0:31:01]} 42. Nxb5 {[%clk 0:17:16]} 42... Rxe3 {[%clk 0:20:00]} 43. Qxe3
{[%clk 0:17:30]} 43... Bc5 {[%clk 0:20:24]} 44. Nd4 {[%clk 0:17:20]} 44... Ne6
{[%clk 0:20:36]} 45. Kg2 {[%clk 0:16:45]} 45... Bxd4 {[%clk 0:17:44]} 46. Rxd4
{[%clk 0:17:09]} 46... Nxd4 {[%clk 0:17:54]} 47. Qxd4 {[%clk 0:17:36]} 47...
Qc2+ {[%clk 0:17:58]} 48. Kh3 {[%clk 0:12:22]} 48... Qe4 {[%clk 0:14:14]} 49.
Qxe4 {[%clk 0:11:25]} 49... fxe4 {[%clk 0:14:22]} 50. g4 {[%clk 0:11:45]} 50...
d4 {[%clk 0:14:09]} 51. Kg3 {[%clk 0:11:57]} 51... d3 {[%clk 0:13:39]} 1/2-1/2

[Variant "Standard"]
[Site "Europe Echecs"]

[Event "Sunway Sitges Chess Festival"]
[Date "2024.12.21"]
[White "Ivanchuk, Vasyl"]
[Black "Song, Edward"]
[WhiteElo "2630"]
[BlackElo "2363"]
[Round "8.9"]
[Result "1/2-1/2"]
[TimeControl "40/5400+30:1800+30"]

1. Nf3 {[%clk 1:30:30]} 1... d5 {[%clk 1:28:36]} 2. d4 {[%clk 1:30:55]} 2... Nf6
{[%clk 1:29:01]} 3. c4 {[%clk 1:31:21]} 3... e6 {[%clk 1:29:24]} 4. g3 {[%clk
1:31:41]} 4... dxc4 {[%clk 1:26:33]} 5. Bg2 {[%clk 1:32:06]} 5... Bb4+ {[%clk
1:26:52]} 6. Bd2 {[%clk 1:31:44]} 6... a5 {[%clk 1:27:17]} 7. Qc2 {[%clk
1:31:29]} 7... Bxd2+ {[%clk 1:26:56]} 8. Nbxd2 {[%clk 1:31:24]} 8... b5 {[%clk
1:26:49]} 9. a4 {[%clk 1:31:50]} 9... c6 {[%clk 1:26:50]} 10. b3 {[%clk
1:32:16]} 10... cxb3 {[%clk 1:26:07]} 11. Nxb3 {[%clk 1:32:41]} 11... O-O {[%clk
1:15:59]} 12. O-O {[%clk 1:33:00]} 12... Ba6 {[%clk 1:14:39]} 13. Rfc1 {[%clk
1:25:34]} 13... bxa4 {[%clk 1:04:34]} 14. Rxa4 {[%clk 1:24:37]} 14... Bb5 {[%clk
1:04:58]} 15. Ra3 {[%clk 1:25:04]} 15... Nbd7 {[%clk 1:03:45]} 16. e3 {[%clk
1:25:24]} 16... a4 {[%clk 1:00:01]} 17. Nc5 {[%clk 1:25:53]} 17... Qe7 {[%clk
0:58:23]} 18. Ng5 {[%clk 1:26:10]} 18... Nxc5 {[%clk 0:54:08]} 19. Qxc5 {[%clk
1:26:33]} 19... Qxc5 {[%clk 0:54:29]} 20. Rxc5 {[%clk 1:27:02]} 20... Rac8
{[%clk 0:46:38]} 21. Ne4 {[%clk 1:26:51]} 21... Nxe4 {[%clk 0:45:56]} 22. Bxe4
{[%clk 1:26:41]} 22... Rfd8 {[%clk 0:46:00]} 23. f4 {[%clk 1:27:06]} 23... h6
{[%clk 0:46:11]} 24. Kf2 {[%clk 1:27:32]} 24... Kf8 {[%clk 0:46:37]} 25. Ke1
{[%clk 1:27:58]} 25... Ke7 {[%clk 0:47:01]} 26. Kd2 {[%clk 1:28:21]} 26... Rd7
{[%clk 0:46:49]} 27. Bf3 {[%clk 1:28:41]} 27... Rdd8 {[%clk 0:47:11]} 28. Be4
{[%clk 1:29:07]} 28... Rd7 {[%clk 0:47:38]} 29. Bf3 {[%clk 1:29:32]} 29... Rdd8
{[%clk 0:48:05]} 30. Be4 {[%clk 1:29:57]} 30... Rd7 {[%clk 0:48:32]} 1/2-1/2

[Variant "Standard"]
[Site "Europe Echecs"]

[Event "Sunway Sitges Chess Festival"]
[Date "2024.12.21"]
[White "Velten, Paul"]
[Black "Khusenkhojaev, Mustafokhuja"]
[WhiteElo "2501"]
[BlackElo "2339"]
[Round "8.10"]
[Result "1/2-1/2"]
[TimeControl "40/5400+30:1800+30"]

1. Nf3 {[%clk 1:30:34]} 1... Nf6 {[%clk 1:30:51]} 2. c4 {[%clk 1:30:39]} 2... c5
{[%clk 1:30:52]} 3. Nc3 {[%clk 1:30:36]} 3... Nc6 {[%clk 1:31:08]} 4. g3 {[%clk
1:26:30]} 4... d5 {[%clk 1:31:17]} 5. cxd5 {[%clk 1:26:27]} 5... Nxd5 {[%clk
1:31:37]} 6. Bg2 {[%clk 1:26:42]} 6... Nc7 {[%clk 1:31:49]} 7. a3 {[%clk
1:25:04]} 7... g6 {[%clk 1:32:03]} 8. d3 {[%clk 1:19:56]} 8... Bg7 {[%clk
1:31:12]} 9. Be3 {[%clk 1:19:59]} 9... Ne6 {[%clk 1:23:27]} 10. O-O {[%clk
1:19:19]} 10... O-O {[%clk 1:21:18]} 11. Rc1 {[%clk 1:13:29]} 11... Bd7 {[%clk
1:18:32]} 12. h4 {[%clk 0:59:54]} 12... Rc8 {[%clk 1:11:02]} 13. h5 {[%clk
0:55:46]} 13... Ned4 {[%clk 1:07:58]} 14. h6 {[%clk 0:54:22]} 14... Bh8 {[%clk
1:06:55]} 15. Bxd4 {[%clk 0:44:56]} 15... Nxd4 {[%clk 1:03:05]} 16. Nxd4 {[%clk
0:45:12]} 16... cxd4 {[%clk 1:02:00]} 17. Ne4 {[%clk 0:45:34]} 17... Qb6 {[%clk
1:01:30]} 18. b4 {[%clk 0:44:39]} 18... Bc6 {[%clk 0:52:12]} 19. Qb3 {[%clk
0:42:44]} 19... Bxe4 {[%clk 0:46:10]} 20. Bxe4 {[%clk 0:42:54]} 20... Rc3 {[%clk
0:39:27]} 21. Rxc3 {[%clk 0:41:53]} 21... dxc3 {[%clk 0:39:55]} 22. e3 {[%clk
0:42:10]} 22... Rc8 {[%clk 0:38:54]} 23. Rc1 {[%clk 0:41:45]} 23... e6 {[%clk
0:37:58]} 24. d4 {[%clk 0:39:02]} 24... Qc7 {[%clk 0:37:21]} 25. f4 {[%clk
0:36:57]} 25... Bf6 {[%clk 0:36:46]} 26. Kf2 {[%clk 0:35:54]} 26... Be7 {[%clk
0:36:09]} 27. Ke2 {[%clk 0:29:11]} 27... Bf8 {[%clk 0:33:14]} 28. Kd3 {[%clk
0:29:20]} 28... Bxh6 {[%clk 0:30:36]} 29. Rxc3 {[%clk 0:29:25]} 29... Qd7 {[%clk
0:26:21]} 30. Rxc8+ {[%clk 0:26:31]} 30... Qxc8 {[%clk 0:26:49]} 31. Qa4 {[%clk
0:24:26]} 31... a6 {[%clk 0:15:09]} 32. Qc2 {[%clk 0:24:08]} 32... Qxc2+ {[%clk
0:07:19]} 33. Kxc2 {[%clk 0:24:32]} 33... b6 {[%clk 0:07:44]} 34. Bd3 {[%clk
0:24:28]} 34... a5 {[%clk 0:08:06]} 35. Kb3 {[%clk 0:24:49]} 35... Bf8 {[%clk
0:08:08]} 36. Kc4 {[%clk 0:25:11]} 36... axb4 {[%clk 0:08:05]} 37. a4 {[%clk
0:25:35]} 37... Be7 {[%clk 0:06:44]} 38. Kb5 {[%clk 0:25:59]} 38... Bd8 {[%clk
0:06:46]} 39. Kc6 {[%clk 0:25:41]} 39... h5 {[%clk 0:07:11]} 40. e4 {[%clk
0:55:36]} 40... g5 {[%clk 0:30:32]} 41. fxg5 {[%clk 0:54:46]} 41... Kf8 {[%clk
0:24:49]} 42. d5 {[%clk 0:50:47]} 42... exd5 {[%clk 0:24:48]} 43. exd5 {[%clk
0:51:14]} 43... Bxg5 {[%clk 0:15:54]} 44. Kxb6 {[%clk 0:50:46]} 44... Bd8+
{[%clk 0:14:26]} 45. Kc6 {[%clk 0:50:49]} 45... b3 {[%clk 0:14:38]} 46. d6
{[%clk 0:49:07]} 46... b2 {[%clk 0:14:56]} 47. Bf5 {[%clk 0:48:09]} 47... Ke8
{[%clk 0:14:18]} 48. Kc5 {[%clk 0:47:59]} 48... Ba5 {[%clk 0:12:36]} 49. Kc4
{[%clk 0:47:17]} 49... Be1 {[%clk 0:12:40]} 50. Kb3 {[%clk 0:47:37]} 50... b1=Q+
{[%clk 0:12:58]} 51. Bxb1 {[%clk 0:48:02]} 51... Kd7 {[%clk 0:13:23]} 52. g4
{[%clk 0:47:02]} 52... hxg4 {[%clk 0:12:56]} 53. Bf5+ {[%clk 0:47:26]} 53...
Kxd6 {[%clk 0:13:21]} 54. Bxg4 {[%clk 0:47:52]} 54... Kc7 {[%clk 0:13:42]} 55.
Bf5 {[%clk 0:48:15]} 55... Kb6 {[%clk 0:14:06]} 56. Bg4 {[%clk 0:48:42]} 56...
Ka5 {[%clk 0:14:30]} 57. Bf5 {[%clk 0:49:08]} 57... Kb6 {[%clk 0:14:54]} 58. Bg4
{[%clk 0:49:35]} 58... Ka5 {[%clk 0:15:20]} 59. Bf5 {[%clk 0:50:03]} 59... Kb6
{[%clk 0:15:10]} 1/2-1/2

[Variant "Standard"]
[Site "Europe Echecs"]

[Event "Sunway Sitges Chess Festival"]
[Date "2024.12.21"]
[White "Shamatava, Nikolozi"]
[Black "Ilamparthi A R"]
[WhiteElo "2334"]
[BlackElo "2391"]
[Round "8.11"]
[Result "0-1"]
[TimeControl "40/5400+30:1800+30"]

1. e4 {[%clk 1:30:57]} 1... c5 {[%clk 1:30:48]} 2. Nf3 {[%clk 1:31:18]} 2... Nc6
{[%clk 1:31:13]} 3. d4 {[%clk 1:31:42]} 3... cxd4 {[%clk 1:31:37]} 4. Nxd4
{[%clk 1:32:07]} 4... e5 {[%clk 1:32:00]} 5. Nb5 {[%clk 1:32:19]} 5... a6 {[%clk
1:32:25]} 6. Nd6+ {[%clk 1:32:29]} 6... Bxd6 {[%clk 1:32:50]} 7. Qxd6 {[%clk
1:32:55]} 7... Qe7 {[%clk 1:33:13]} 8. Qd1 {[%clk 1:32:40]} 8... Nf6 {[%clk
1:33:38]} 9. Nc3 {[%clk 1:33:00]} 9... d6 {[%clk 1:34:05]} 10. Bg5 {[%clk
1:29:59]} 10... Be6 {[%clk 1:34:27]} 11. Nd5 {[%clk 1:28:04]} 11... Bxd5 {[%clk
1:34:54]} 12. exd5 {[%clk 1:28:27]} 12... Nb8 {[%clk 1:35:18]} 13. Be2 {[%clk
1:20:39]} 13... Nbd7 {[%clk 1:34:52]} 14. O-O {[%clk 1:20:58]} 14... O-O {[%clk
1:35:16]} 15. a4 {[%clk 1:13:04]} 15... a5 {[%clk 1:35:28]} 16. Ra3 {[%clk
1:12:08]} 16... h6 {[%clk 1:33:35]} 17. Be3 {[%clk 0:57:48]} 17... Rac8 {[%clk
1:20:07]} 18. Rb3 {[%clk 1:02:35]} 18... Nc5 {[%clk 1:14:11]} 19. Rb5 {[%clk
1:02:45]} 19... Qc7 {[%clk 1:08:00]} 20. f4 {[%clk 0:58:31]} 20... exf4 {[%clk
0:57:58]} 21. Bxf4 {[%clk 0:50:44]} 21... Nfd7 {[%clk 0:54:04]} 22. c3 {[%clk
0:46:37]} 22... Rce8 {[%clk 0:53:11]} 23. Bg4 {[%clk 0:42:33]} 23... f5 {[%clk
0:47:55]} 24. Bh5 {[%clk 0:39:41]} 24... Re7 {[%clk 0:47:06]} 25. Qf3 {[%clk
0:34:26]} 25... Ne5 {[%clk 0:43:03]} 26. Qg3 {[%clk 0:33:59]} 26... g5 {[%clk
0:34:34]} 27. Bxe5 {[%clk 0:27:02]} 27... Rxe5 {[%clk 0:33:47]} 28. Qh3 {[%clk
0:26:00]} 28... Qe7 {[%clk 0:28:54]} 29. Qg3 {[%clk 0:22:02]} 29... Ne4 {[%clk
0:24:24]} 30. Qe1 {[%clk 0:13:38]} 30... g4 {[%clk 0:17:17]} 31. Qc1 {[%clk
0:13:34]} 31... Kg7 {[%clk 0:14:43]} 32. Qe3 {[%clk 0:07:28]} 32... Rd8 {[%clk
0:08:09]} 33. Qe1 {[%clk 0:04:13]} 33... Qg5 {[%clk 0:04:45]} 34. Rxb7+ {[%clk
0:04:06]} 34... Kh8 {[%clk 0:05:13]} 35. Bxg4 {[%clk 0:00:53]} 35... Nc5 {[%clk
0:03:00]} 36. Qf2 {[%clk 0:00:36]} 36... Nxb7 {[%clk 0:03:04]} 37. Bxf5 {[%clk
0:00:42]} 37... Rf8 {[%clk 0:03:20]} 38. g4 {[%clk 0:00:33]} 38... Rfxf5 {[%clk
0:03:44]} 0-1

[Variant "Standard"]
[Site "Europe Echecs"]

[Event "Sunway Sitges Chess Festival"]
[Date "2024.12.21"]
[White "Lopez Martinez, Josep Manuel"]
[Black "Alinasab, Mobina"]
[WhiteElo "2455"]
[BlackElo "2330"]
[Round "8.12"]
[Result "1-0"]
[TimeControl "40/5400+30:1800+30"]

1. Nf3 {[%clk 1:25:06]} 1... Nf6 {[%clk 1:30:20]} 2. c4 {[%clk 1:23:35]} 2... e6
{[%clk 1:29:35]} 3. Nc3 {[%clk 1:24:14]} 3... Bb4 {[%clk 1:26:57]} 4. Qc2 {[%clk
1:20:41]} 4... c5 {[%clk 1:25:14]} 5. g3 {[%clk 1:17:42]} 5... Nc6 {[%clk
1:22:26]} 6. Bg2 {[%clk 1:20:19]} 6... O-O {[%clk 1:20:59]} 7. O-O {[%clk
1:18:50]} 7... d6 {[%clk 1:18:12]} 8. a3 {[%clk 1:07:57]} 8... Ba5 {[%clk
1:02:42]} 9. d3 {[%clk 1:00:30]} 9... h6 {[%clk 0:55:04]} 10. e3 {[%clk
0:54:37]} 10... e5 {[%clk 0:51:26]} 11. Nd2 {[%clk 0:50:21]} 11... Ne7 {[%clk
0:41:23]} 12. Rb1 {[%clk 0:56:46]} 12... Bxc3 {[%clk 0:31:56]} 13. Qxc3 {[%clk
0:55:47]} 13... a5 {[%clk 0:28:54]} 14. b4 {[%clk 0:51:29]} 14... cxb4 {[%clk
0:32:32]} 15. axb4 {[%clk 0:51:52]} 15... axb4 {[%clk 0:32:18]} 16. Rxb4 {[%clk
0:44:48]} 16... d5 {[%clk 0:25:51]} 17. Bb2 {[%clk 0:48:47]} 17... Nc6 {[%clk
0:24:18]} 18. Rb5 {[%clk 0:49:00]} 18... d4 {[%clk 0:18:39]} 19. exd4 {[%clk
0:49:01]} 19... exd4 {[%clk 0:18:43]} 20. Qc2 {[%clk 0:48:29]} 20... Re8 {[%clk
0:18:32]} 21. Nb3 {[%clk 0:44:15]} 21... Re7 {[%clk 0:13:27]} 22. h3 {[%clk
0:47:03]} 22... Ra6 {[%clk 0:10:40]} 23. Qd2 {[%clk 0:40:00]} 23... Ra2 {[%clk
0:08:17]} 24. Nc1 {[%clk 0:34:03]} 24... Ra6 {[%clk 0:07:56]} 25. Re1 {[%clk
0:34:12]} 25... Rxe1+ {[%clk 0:05:10]} 26. Qxe1 {[%clk 0:34:23]} 26... Na7
{[%clk 0:01:41]} 27. Rb3 {[%clk 0:31:19]} 27... Re6 {[%clk 0:05:28]} 28. Qd2
{[%clk 0:31:22]} 28... Nc6 {[%clk 0:04:23]} 29. Ne2 {[%clk 0:31:32]} 29... Qa5
{[%clk 0:-9:-26]} 30. Qxa5 {[%clk 0:17:42]} 30... Nxa5 {[%clk 0:04:17]} 31. Ra3
{[%clk 0:16:05]} 31... Nxc4 {[%clk 0:01:07]} 32. dxc4 {[%clk 0:18:07]} 32...
Rxe2 {[%clk 0:01:32]} 33. Bxd4 {[%clk 0:18:29]} 33... Re1+ {[%clk 0:01:12]} 34.
Kh2 {[%clk 0:18:51]} 34... Be6 {[%clk 0:01:21]} 35. c5 {[%clk 0:19:07]} 35...
Bd5 {[%clk 0:01:06]} 36. Bxf6 {[%clk 0:19:23]} 36... gxf6 {[%clk 0:00:37]} 37.
Bxd5 {[%clk 0:19:45]} 37... Re5 {[%clk 0:01:06]} 38. Rd3 {[%clk 0:19:52]} 38...
Kg7 {[%clk 0:01:19]} 39. Kg2 {[%clk 0:19:44]} 39... Kf8 {[%clk 0:01:38]} 40. Kf1
{[%clk 0:49:41]} 40... Kg7 {[%clk 0:30:51]} 41. f4 {[%clk 0:48:41]} 41... Re7
{[%clk 0:31:08]} 42. Rb3 {[%clk 0:48:55]} 42... Rc7 {[%clk 0:31:36]} 43. Rb5
{[%clk 0:48:32]} 43... Rd7 {[%clk 0:31:54]} 44. Bxb7 {[%clk 0:48:52]} 1-0

[Variant "Standard"]
[Site "Europe Echecs"]

[Event "Sunway Sitges Chess Festival"]
[Date "2024.12.21"]
[White "Raczek, Krzysztof"]
[Black "Savitha Shri B"]
[WhiteElo "2443"]
[BlackElo "2329"]
[Round "8.13"]
[Result "1-0"]
[TimeControl "40/5400+30:1800+30"]

1. e4 {[%clk 1:28:36]} 1... c5 {[%clk 1:29:53]} 2. Nf3 {[%clk 1:28:58]} 2... Nc6
{[%clk 1:30:19]} 3. Bb5 {[%clk 1:29:21]} 3... e6 {[%clk 1:30:42]} 4. Bxc6 {[%clk
1:29:47]} 4... bxc6 {[%clk 1:31:00]} 5. d3 {[%clk 1:30:13]} 5... Ne7 {[%clk
1:30:44]} 6. Nbd2 {[%clk 1:30:38]} 6... Qc7 {[%clk 1:31:09]} 7. h4 {[%clk
1:31:06]} 7... h5 {[%clk 1:27:32]} 8. e5 {[%clk 1:30:21]} 8... Ng6 {[%clk
1:20:14]} 9. Qe2 {[%clk 1:26:24]} 9... f6 {[%clk 1:15:46]} 10. Nc4 {[%clk
1:21:04]} 10... Ba6 {[%clk 1:13:29]} 11. Qe4 {[%clk 1:18:36]} 11... f5 {[%clk
1:01:43]} 12. Qe2 {[%clk 1:13:06]} 12... O-O-O {[%clk 0:59:57]} 13. Bd2 {[%clk
1:10:05]} 13... Bxc4 {[%clk 0:57:12]} 14. dxc4 {[%clk 1:10:29]} 14... Be7 {[%clk
0:49:45]} 15. O-O-O {[%clk 0:53:10]} 15... d5 {[%clk 0:41:59]} 16. exd6 {[%clk
1:01:37]} 16... Rxd6 {[%clk 0:27:33]} 17. Bg5 {[%clk 0:44:54]} 17... Rhd8 {[%clk
0:34:58]} 18. Rxd6 {[%clk 0:45:15]} 18... Rxd6 {[%clk 0:34:58]} 19. g3 {[%clk
0:37:36]} 19... Bf6 {[%clk 0:27:29]} 20. Bxf6 {[%clk 0:35:00]} 20... gxf6 {[%clk
0:27:58]} 21. Qe3 {[%clk 0:35:19]} 21... Qa5 {[%clk 0:24:23]} 22. a3 {[%clk
0:34:34]} 22... e5 {[%clk 0:23:06]} 23. Nd2 {[%clk 0:31:39]} 23... f4 {[%clk
0:15:20]} 24. Qe2 {[%clk 0:32:09]} 24... Qd8 {[%clk 0:14:12]} 25. Ne4 {[%clk
0:26:17]} 25... Rd4 {[%clk 0:13:28]} 26. c3 {[%clk 0:26:06]} 26... fxg3 {[%clk
0:08:39]} 27. fxg3 {[%clk 0:25:13]} 27... Rd3 {[%clk 0:08:21]} 28. Kc2 {[%clk
0:25:26]} 28... Rd7 {[%clk 0:07:40]} 29. Nxc5 {[%clk 0:25:38]} 29... Rd6 {[%clk
0:07:19]} 30. Ne4 {[%clk 0:26:02]} 30... Rd7 {[%clk 0:07:40]} 31. Rf1 {[%clk
0:22:53]} 31... Rf7 {[%clk 0:03:38]} 32. Qxh5 {[%clk 0:26:16]} 1-0

[Variant "Standard"]
[Site "Europe Echecs"]

[Event "Sunway Sitges Chess Festival"]
[Date "2024.12.21"]
[White "Safarov, Deniel"]
[Black "Arfan, Aditya Bagus"]
[WhiteElo "2319"]
[BlackElo "2416"]
[Round "8.14"]
[Result "0-1"]
[TimeControl "40/5400+30:1800+30"]

1. e4 {[%clk 1:30:59]} 1... c6 {[%clk 1:25:39]} 2. d4 {[%clk 1:31:05]} 2... d5
{[%clk 1:25:57]} 3. e5 {[%clk 1:31:24]} 3... Bf5 {[%clk 1:25:57]} 4. Nd2 {[%clk
1:30:58]} 4... e6 {[%clk 1:25:54]} 5. Nb3 {[%clk 1:31:14]} 5... a6 {[%clk
1:26:19]} 6. Nf3 {[%clk 1:31:05]} 6... c5 {[%clk 1:24:50]} 7. dxc5 {[%clk
1:27:01]} 7... Bxc5 {[%clk 1:24:16]} 8. Nxc5 {[%clk 1:26:56]} 8... Qa5+ {[%clk
1:24:42]} 9. c3 {[%clk 1:27:20]} 9... Qxc5 {[%clk 1:25:08]} 10. Nd4 {[%clk
1:27:43]} 10... Ne7 {[%clk 1:11:16]} 11. Nxf5 {[%clk 1:12:00]} 11... Nxf5 {[%clk
1:10:47]} 12. Bd3 {[%clk 1:11:37]} 12... Nc6 {[%clk 1:08:33]} 13. O-O {[%clk
1:07:49]} 13... O-O {[%clk 1:01:34]} 14. Bf4 {[%clk 1:04:24]} 14... d4 {[%clk
0:57:08]} 15. Rc1 {[%clk 0:45:15]} 15... dxc3 {[%clk 0:46:33]} 16. Rxc3 {[%clk
0:38:25]} 16... Qd4 {[%clk 0:41:21]} 17. Qc1 {[%clk 0:38:20]} 17... Rfd8 {[%clk
0:35:59]} 18. Re1 {[%clk 0:32:28]} 18... Nb4 {[%clk 0:27:58]} 19. Bb1 {[%clk
0:28:42]} 19... Nd5 {[%clk 0:27:22]} 20. Rc4 {[%clk 0:26:32]} 20... Qa7 {[%clk
0:25:09]} 21. Bg5 {[%clk 0:22:02]} 21... Re8 {[%clk 0:21:11]} 22. Rd1 {[%clk
0:21:36]} 22... b5 {[%clk 0:16:10]} 23. Rc5 {[%clk 0:20:18]} 23... h6 {[%clk
0:13:34]} 24. Bd2 {[%clk 0:14:39]} 24... Nfe7 {[%clk 0:12:59]} 25. Qc2 {[%clk
0:12:47]} 25... Kf8 {[%clk 0:09:32]} 26. b4 {[%clk 0:09:06]} 26... Rec8 {[%clk
0:07:35]} 27. Rc1 {[%clk 0:04:58]} 27... Rxc5 {[%clk 0:06:21]} 28. bxc5 {[%clk
0:04:33]} 28... Ng6 {[%clk 0:03:29]} 29. Qb2 {[%clk 0:03:14]} 29... Rc8 {[%clk
0:03:39]} 30. Bxg6 {[%clk 0:02:55]} 30... fxg6 {[%clk 0:03:37]} 31. Ba5 {[%clk
0:02:35]} 31... Rc6 {[%clk 0:02:58]} 32. Qa3 {[%clk 0:01:39]} 32... Kg8 {[%clk
0:01:46]} 33. h3 {[%clk 0:01:15]} 33... Qb8 {[%clk 0:01:24]} 34. Qb2 {[%clk
0:01:28]} 34... Qf8 {[%clk 0:01:48]} 35. Qc2 {[%clk 0:00:53]} 35... Qf5 {[%clk
0:01:01]} 36. Qe2 {[%clk 0:01:04]} 36... Qf4 {[%clk 0:00:58]} 37. Rc2 {[%clk
0:00:36]} 37... Qd4 {[%clk 0:01:03]} 38. Bb6 {[%clk 0:00:35]} 38... Kh7 {[%clk
0:00:36]} 39. Rd2 {[%clk 0:00:34]} 39... Qc4 {[%clk 0:00:36]} 40. Qf3 {[%clk
0:30:34]} 40... b4 {[%clk 0:30:35]} 41. Qd3 {[%clk 0:18:43]} 41... Qxd3 {[%clk
0:23:11]} 42. Rxd3 {[%clk 0:19:06]} 42... a5 {[%clk 0:23:30]} 43. Ba7 {[%clk
0:14:42]} 43... a4 {[%clk 0:19:01]} 44. Rd2 {[%clk 0:08:50]} 44... Rc7 {[%clk
0:13:26]} 45. Bb6 {[%clk 0:08:39]} 45... Rc6 {[%clk 0:10:02]} 46. Ba7 {[%clk
0:05:55]} 46... b3 {[%clk 0:07:49]} 47. axb3 {[%clk 0:02:32]} 47... Ra6 {[%clk
0:06:51]} 0-1

[Variant "Standard"]
[Site "Europe Echecs"]